fUSD/lending_fUSD_20251231
["ID","MTS","AMOUNT","RATE_DAILY","PERIOD"]
[400199755,1767192643117,-437.482557,0.0001399,2]
[400199757,1767192643127,-168.0,0.00013995,2]
[400199760,1767192643139,-213.1782741,0.00014009,2]
[400199762,1767192643152,-565.35,0.00014019,2]
[400199764,1767192643162,-157.94,0.00014031,2]
[400199766,1767192643172,-4805.70738812,0.00014089,2]
[400199769,1767192643182,-5652.90456611,0.00014089,2]
[400199771,1767192643193,-168.0,0.00014103,2]
[400199773,1767192643203,-382.0,0.00014116,2]
[400199775,1767192643213,-166.66,0.0001414,2]
[400199777,1767192643223,-433.0,0.00014184,2]
[400199778,1767192643233,-187.97,0.00014208,2]
[400199781,1767192643245,-1352.11,0.00014232,2]
[400199783,1767192643254,-587.0,0.00014272,2]
[400199785,1767192643264,-587.0,0.00014272,2]
[400199787,1767192643274,-2351.0,0.00014326,2]
[400199789,1767192643284,-825.23,0.00014384,2]
[400199791,1767192643294,-400.46052686,0.00014477,2]
[400199793,1767192643303,-1352.11,0.00014506,2]
[400199795,1767192643314,-178.74,0.00014548,2]
[400199797,1767192643323,-465.64,0.00014548,2]
[400199799,1767192643333,-250.0,0.0001455,2]
[400199801,1767192643343,-4805.70738812,0.00014651,2]
[400199803,1767192643353,-5652.90456611,0.00014651,2]
[400199805,1767192643364,-1600.0,0.00014721,2]
[400199809,1767192643384,-213.1782741,0.00014731,2]
[400199811,1767192643397,-1000.0,0.00014757,2]
[400199813,1767192643408,-1352.11,0.0001478,2]
[400199815,1767192643419,-437.482557,0.00014796,2]
[400199817,1767192643429,-437.482557,0.00014796,2]
[400199820,1767192643439,-437.482557,0.00014796,2]
[400199822,1767192643450,-437.482549,0.00014796,2]
[400199824,1767192643459,-1403.0,0.00014797,2]
[400199826,1767192643469,-3462.0,0.00014797,2]
[400199828,1767192643479,-1328.0,0.00014797,2]
[400199830,1767192643490,-613.0,0.00014797,2]
[400199832,1767192643499,-1264.0,0.00014797,2]
[400199834,1767192643509,-432.0,0.00014797,2]
[400199836,1767192643519,-212.0,0.00014797,2]
[400199838,1767192643529,-6542.0,0.00014797,2]
[400199840,1767192643538,-565.0,0.00014797,2]
[400199842,1767192643549,-4812.0,0.00014797,2]
[400199844,1767192643559,-187.97,0.00014854,2]
[400199847,1767192643569,-15446.20726218,0.00015,2]
[400199849,1767192643579,-1156.2043994,0.00015,2]
[400199851,1767192643590,-10682.19880959,0.00015,2]
[400199853,1767192643600,-4787.83539165,0.00015,2]
[400199855,1767192643610,-682.422326,0.00015,2]
[400199857,1767192643620,-682.422326,0.00015,2]
[400199859,1767192643632,-682.422326,0.00015,2]
[400199861,1767192643643,-682.422326,0.00015,2]
[400199863,1767192643653,-1352.14594667,0.00015054,2]
[400199865,1767192643663,-211.91,0.00015068,2]
[400199867,1767192643674,-825.23,0.00015068,2]
[400199869,1767192643683,-221.88,0.00015108,2]
[400199872,1767192643693,-388.28,0.00015193,2]
[400199874,1767192643703,-4805.70738812,0.00015213,2]
[400199876,1767192643713,-5652.90456611,0.00015213,2]
[400199878,1767192643723,-400.46052686,0.00015284,2]
[400199880,1767192643739,-150.20213798,0.00015288,2]
[400199882,1767192643750,-150.0,0.00015288,2]
[400199884,1767192643759,-150.0,0.00015288,2]
[400199886,1767192643769,-150.0,0.00015288,2]
[400199889,1767192643779,-150.20091821,0.00015288,2]
[400199891,1767192643789,-150.0,0.00015288,2]
[400199893,1767192643799,-150.0,0.00015288,2]
[400199895,1767192643809,-150.0,0.00015288,2]
[400199897,1767192643820,-150.0,0.00015288,2]
[400199899,1767192643830,-150.0,0.00015288,2]
[400199901,1767192643840,-150.0,0.00015288,2]
[400199903,1767192643849,-150.0,0.00015288,2]
[400199905,1767192643860,-150.36661872,0.00015288,2]
[400199907,1767192643869,-150.0,0.00015288,2]
[400199909,1767192643879,-150.0,0.00015288,2]
[400199912,1767192643889,-178.74,0.0001537,2]
[400199914,1767192643900,-386.65,0.0001537,2]
[400199916,1767192643909,-465.64,0.0001537,2]
[400199918,1767192643919,-465.64,0.0001537,2]
[400199920,1767192643930,-465.64,0.0001537,2]
[400199922,1767192643940,-178.74,0.0001537,2]
[400199924,1767192643951,-498.01763416,0.00015401,2]
[400199926,1767192643962,-489.87,0.00015452,2]
[400199928,1767192643972,-213.1782741,0.00015454,2]
[400199931,1767192643982,-736.0,0.00015461,2]
[400199933,1767192643993,-150.0,0.00015476,2]
[400199935,1767192644003,-150.0,0.00015476,2]
[400199937,1767192644014,-150.0,0.00015476,2]
[400199939,1767192644024,-150.0,0.000155,2]
[400199941,1767192644036,-187.97,0.000155,2]
[400199943,1767192644047,-150.0,0.0001553,2]
[400199945,1767192644057,-150.0,0.00015571,2]
[400199947,1767192644067,-150.0,0.00015665,2]
[400199949,1767192644077,-150.0,0.00015665,2]
[400199951,1767192644087,-150.0,0.00015665,2]
[400199954,1767192644097,-823.0,0.0001567,2]
[400199956,1767192644107,-823.0,0.0001567,2]
[400199958,1767192644116,-150.0,0.00015712,2]
[400199960,1767192644126,-831.0,0.0001572,2]
[400199962,1767192644136,-831.0,0.0001572,2]
[400199964,1767192644146,-825.23,0.00015753,2]
[400199966,1767192644159,-3292.0,0.00015758,2]
[400199968,1767192644169,-150.0,0.00015773,2]
[400199970,1767192644179,-4805.70738812,0.00015776,2]
[400199972,1767192644189,-5652.90456611,0.00015776,2]
[400199974,1767192644201,-169.902,0.00015777,2]
[400199976,1767192644211,-150.0,0.00015777,2]
[400199979,1767192644221,-150.0,0.00015777,2]
[400199981,1767192644232,-150.0,0.00015777,2]
[400199983,1767192644243,-150.0,0.00015777,2]
[400199985,1767192644254,-150.0,0.00015777,2]
[400199987,1767192644264,-150.0,0.00015777,2]
[400199989,1767192644273,-150.0,0.00015777,2]
[400199991,1767192644283,-150.0,0.00015777,2]
[400199993,1767192644293,-150.0,0.00015777,2]
[400199995,1767192644303,-500.0,0.00015797,2]
[400199997,1767192644312,-150.0,0.00015854,2]
[400199999,1767192644321,-150.0,0.00015854,2]
[400200001,1767192644332,-150.0,0.00015854,2]
[400200004,1767192644342,-150.0,0.00015854,2]
[400200006,1767192644351,-150.0,0.00015854,2]
[400200008,1767192644362,-1454.0,0.0001589,2]
[400200010,1767192644371,-150.0,0.00015925,2]
[400200012,1767192644381,-500.0,0.00015973,2]
[400200014,1767192644390,-500.0,0.00015973,2]
[400200016,1767192644400,-500.0,0.00015973,2]
[400200018,1767192644410,-500.0,0.00015973,2]
[400200020,1767192644420,-500.0,0.00015973,2]
[400200022,1767192644429,-500.0,0.00015973,2]
[400200024,1767192644438,-163.95719546,0.00015973,2]
[400200026,1767192644448,-500.0,0.00015973,2]
[400200028,1767192644458,-160.20652096,0.00015973,2]
[400200030,1767192644468,-500.0,0.00015973,2]
[400200032,1767192644478,-500.0,0.00015973,2]
[400200034,1767192644487,-172.85076038,0.00015973,2]
[400200036,1767192644497,-504.52900939,0.00015973,2]
[400200038,1767192644507,-500.0,0.00015973,2]
[400200040,1767192644517,-500.0,0.00015973,2]
[400200042,1767192644527,-500.0,0.00015973,2]
[400200044,1767192644536,-500.0,0.00015973,2]
[400200046,1767192644546,-503.89734133,0.00015973,2]
[400200048,1767192644555,-500.0,0.00015999,2]
[400200050,1767192644565,-311.62999981,0.00016,2]
[400200052,1767192644575,-81399.15931959,0.00016,4]
[400200055,1767192644596,-591.46997237,0.00016,4]
[400200058,1767192644608,-443.92,0.00016,4]
[400200199,1767192645980,-3398.94524865,0.00016,4]
[400200211,1767192646082,-158.09533392,0.0001184,2]
[400200222,1767192646191,-78.11386608,0.0001184,2]
[400200224,1767192646203,-176.62360979,0.000124,2]
[400200227,1767192646215,-165.43639021,0.000124,2]
[400200229,1767192646227,-151.0,0.00013281,2]
[400200231,1767192646236,-238.17292721,0.0001332,2]
[400200233,1767192646251,-0.17421415,0.0001332,2]
[400200235,1767192646261,-514.21854925,0.00013397,2]
[400200237,1767192646271,-135.6072366,0.00014797,2]
[400200239,1767192646285,-2297.3927634,0.00014797,2]
[400200241,1767192646295,-5758.36176899,0.00016,4]
[400200244,1767192646306,-259.19169647,0.00016,4]
[400200246,1767192646318,-2493.1,0.00016,4]
[400200248,1767192646329,-649.83334176,0.00016,4]
[400200264,1767192646470,-6019.73832867,0.00016,4]
[400200266,1767192646482,-631.0,0.00016,4]
[400200271,1767192646518,-151.0,0.00015498,2]
[400200273,1767192646528,-151.0,0.00015498,2]
[400200275,1767192646537,-84793.72662112,0.00016,4]
[400200277,1767192646551,-400.0,0.00016,2]
[400200279,1767192646564,-150.0,0.00016016,2]
[400200281,1767192646576,-945.30874191,0.00016016,2]
[400200305,1767192646785,-3468.1991507,0.00016016,2]
[400200308,1767192646806,-5586.49210739,0.00016016,2]
[400200310,1767192646815,-831.0,0.0001604,2]
[400200312,1767192646825,-150.0,0.00016043,2]
[400200314,1767192646834,-150.0,0.00016043,2]
[400200316,1767192646844,-130.2982122,0.00016043,2]
[400200642,1767192658715,500.0,0.0001184,2]
[400200650,1767192665003,4033.3394,0.0001184,2]
[400200655,1767192688021,5966.6706,0.0001184,2]
[400200656,1767192688103,10000.01,0.0001184,2]
[400200657,1767192688178,10000.01,0.0001184,2]
[400200658,1767192688251,10000.01,0.0001184,2]
[400200659,1767192688326,10000.01,0.0001184,2]
[400200660,1767192688402,10000.01,0.0001184,2]
[400200661,1767192688475,10000.01,0.0001184,2]
[400200662,1767192688547,10000.01,0.0001184,2]
[400200663,1767192688632,10000.01,0.0001184,2]
[400200664,1767192688704,10000.01,0.0001184,2]
[400200665,1767192688832,-435.80607334,0.0001184,2]
[400200666,1767192692827,-160.34407081,0.0001184,2]
[400200667,1767192694959,-300.86586413,0.0001184,2]
[400200668,1767192696509,-309.00967224,0.0001184,2]
[400200669,1767192699037,-192.85106938,0.0001184,2]
[400200670,1767192701154,-217.94258592,0.0001184,2]
[400200672,1767192704464,-403.19873588,0.0001184,2]
[400200673,1767192705833,-231.43896469,0.0001184,2]
[400200674,1767192707398,-296.66561182,0.0001184,2]
[400200677,1767192709710,-261.43882514,0.0001184,2]
[400200678,1767192711706,-345.10626585,0.0001184,2]
[400200679,1767192713752,-233.70793718,0.0001184,2]
[400200684,1767192772389,238.34714136,0.0001174,2]
[400200686,1767192781596,300.0,0.00011839,2]
[400200687,1767192787580,360.77461161,0.00011839,2]
[400200688,1767192791939,1200.0,0.00011839,2]
[400200700,1767192841439,300.0,0.00011839,2]
[400200701,1767192841543,300.0,0.00011839,2]
[400200703,1767192842541,300.0,0.00011839,2]
[400200704,1767192842780,150.0,0.00011839,2]
[400200707,1767192864109,274.50453362,0.00011839,2]
[400200709,1767192868501,6001.88043097,0.0001174,2]
[400200711,1767192892504,500.0,0.00011839,2]
[400200712,1767192892553,74.50328244,0.00011839,2]
[400200713,1767192892583,425.49671756,0.00011839,2]
[400200714,1767192892624,500.0,0.00011839,2]
[400200715,1767192892666,185.85674822,0.0001174,2]
[400200716,1767192892707,500.0,0.00011839,2]
[400200717,1767192892746,500.0,0.00011839,2]
[400200718,1767192892786,262.87646273,0.00011839,2]
[400200719,1767192893899,184.38102748,0.00011839,2]
[400200722,1767192901590,300.0,0.00011839,2]
[400200723,1767192901640,300.0,0.00011839,2]
[400200724,1767192901688,1200.0,0.00011839,2]
[400200730,1767192948056,236.2092,0.0001174,2]
[400200740,1767193021324,300.0,0.00011839,2]
[400200741,1767193021938,2213.29636092,0.0001174,2]
[400200742,1767193022766,300.0,0.00011839,2]
[400200743,1767193023461,150.0,0.00011839,2]
[400200744,1767193030809,200.0,0.0001184,2]
[400200745,1767193033346,200.0,0.0001184,2]
[400200746,1767193034018,500.0,0.0001184,2]
[400200748,1767193049015,-300.0,0.0001184,2]
[400200749,1767193056949,-5061.1634923,0.0001184,2]
[400200750,1767193058523,-10000.01,0.0001184,2]
[400200751,1767193058719,-10000.01,0.0001184,2]
[400200752,1767193058832,-10000.01,0.0001184,2]
[400200753,1767193058974,-10000.01,0.0001184,2]
[400200754,1767193059097,-10000.01,0.0001184,2]
[400200755,1767193059238,-10000.01,0.0001184,2]
[400200756,1767193059383,-10000.01,0.0001184,2]
[400200757,1767193059501,-10000.01,0.0001184,2]
[400200758,1767193059628,-10000.01,0.0001184,2]
[400200761,1767193078875,500.0,0.00011839,2]
[400200762,1767193079095,500.0,0.00011839,2]
[400200763,1767193079145,599.67965394,0.00011839,2]
[400200764,1767193081734,451.6688548,0.00011839,2]
[400200766,1767193091618,1200.0,0.00011839,2]
[400200767,1767193096676,500.0,0.00011839,2]
[400200768,1767193096737,247.11688542,0.00011839,2]
[400200771,1767193130222,-224.46039288,0.0001184,2]
[400200773,1767193134520,-300.0,0.0001184,2]
[400200774,1767193138196,-311.43987508,0.0001184,2]
[400200775,1767193141721,300.0,0.00011839,2]
[400200779,1767193165282,5701.54460584,0.0001183,2]
[400200780,1767193165321,791.63592792,0.0001183,2]
[400200781,1767193167764,-256.55012162,0.0001184,2]
[400200782,1767193171628,-170.11856859,0.0001184,2]
[400200783,1767193173753,-179.79888882,0.0001184,2]
[400200784,1767193174606,249.67965393,0.00011839,2]
[400200785,1767193176915,185.561906,0.00011781,2]
[400200787,1767193179069,2500.0,0.0001174,2]
[400200791,1767193189277,179.798888,0.00011781,2]
[400200793,1767193201238,1200.0,0.00011839,2]
[400200794,1767193201284,300.0,0.00011839,2]
[400200795,1767193202949,150.0,0.00011839,2]
[400200796,1767193203337,247.0,0.0001184,2]
[400200799,1767193206593,500.0,0.00011839,2]
[400200800,1767193206828,228.52885482,0.00011839,2]
[400200807,1767193219244,943.19819436,0.00011839,2]
[400200808,1767193219327,943.19819436,0.00011839,2]
[400200809,1767193219390,943.19819436,0.00011839,2]
[400200810,1767193219465,638.21018625,0.00011839,2]
[400200811,1767193219507,304.98800811,0.00011839,2]
[400200812,1767193219577,943.19819436,0.00011839,2]
[400200813,1767193219640,943.19819436,0.00011839,2]
[400200814,1767193219714,943.19819436,0.00011839,2]
[400200815,1767193219786,943.19819436,0.00011839,2]
[400200816,1767193219861,943.19819436,0.00011839,2]
[400200817,1767193219930,943.19819436,0.00011839,2]
[400200818,1767193220002,943.19819436,0.00011839,2]
[400200819,1767193220089,943.19819436,0.00011839,2]
[400200820,1767193220164,943.19819436,0.00011839,2]
[400200821,1767193220262,943.19819436,0.00011839,2]
[400200822,1767193220330,263.04004829,0.00011839,2]
[400200823,1767193220368,680.15814607,0.00011839,2]
[400200824,1767193220414,-256.79390013,0.0001184,2]
[400200825,1767193220475,943.19819436,0.00011839,2]
[400200826,1767193220541,943.19819436,0.00011839,2]
[400200827,1767193220622,943.19819436,0.00011839,2]
[400200828,1767193220686,943.19819436,0.00011839,2]
[400200829,1767193220743,943.19819436,0.00011839,2]
[400200830,1767193220814,943.19819436,0.00011839,2]
[400200831,1767193220878,943.19819436,0.00011839,2]
[400200832,1767193220942,943.19819436,0.00011839,2]
[400200833,1767193221000,943.19819436,0.00011839,2]
[400200834,1767193221086,831.06810469,0.00011839,2]
[400200835,1767193221126,112.13008967,0.00011839,2]
[400200836,1767193221202,943.19819436,0.00011839,2]
[400200837,1767193221267,943.19819436,0.00011839,2]
[400200838,1767193221339,943.19819436,0.00011839,2]
[400200839,1767193221398,943.19819436,0.00011839,2]
[400200840,1767193221470,943.19819436,0.00011839,2]
[400200841,1767193221534,943.19819436,0.00011839,2]
[400200842,1767193221599,943.19819436,0.00011839,2]
[400200843,1767193221657,943.19819436,0.00011839,2]
[400200844,1767193221712,943.19819436,0.00011839,2]
[400200845,1767193221772,943.19819436,0.00011839,2]
[400200846,1767193221828,455.89796673,0.00011839,2]
[400200847,1767193221865,487.30022763,0.00011839,2]
[400200848,1767193221927,943.19819436,0.00011839,2]
[400200849,1767193221988,943.19819436,0.00011839,2]
[400200850,1767193222047,943.19819436,0.00011839,2]
[400200851,1767193222114,943.19819436,0.00011839,2]
[400200853,1767193222622,5739.91699493,0.0001174,2]
[400200854,1767193222651,653.29830507,0.0001174,2]
[400200855,1767193223934,-574.09988407,0.0001184,2]
[400200857,1767193225970,-200.0,0.0001184,2]
[400200861,1767193240062,975.72227002,0.00011839,2]
[400200862,1767193240122,975.72227002,0.00011839,2]
[400200863,1767193240174,975.72227002,0.00011839,2]
[400200864,1767193240226,975.72227002,0.00011839,2]
[400200865,1767193240276,975.72227002,0.00011839,2]
[400200866,1767193240336,975.72227002,0.00011839,2]
[400200867,1767193240390,975.72227002,0.00011839,2]
[400200868,1767193240444,975.72227002,0.00011839,2]
[400200869,1767193240497,975.72227002,0.00011839,2]
[400200870,1767193240545,565.21126475,0.00011839,2]
[400200871,1767193240582,410.51100527,0.00011839,2]
[400200872,1767193240632,975.72227002,0.00011839,2]
[400200873,1767193240681,975.72227002,0.00011839,2]
[400200874,1767193240735,975.72227002,0.00011839,2]
[400200875,1767193240784,975.72227002,0.00011839,2]
[400200876,1767193240833,975.72227002,0.00011839,2]
[400200877,1767193240881,975.72227002,0.00011839,2]
[400200878,1767193240930,975.72227002,0.00011839,2]
[400200879,1767193240979,975.72227002,0.00011839,2]
[400200880,1767193241028,975.72227002,0.00011839,2]
[400200881,1767193241094,807.99856455,0.00011839,2]
[400200882,1767193241131,167.72370547,0.00011839,2]
[400200883,1767193241187,975.72227002,0.00011839,2]
[400200884,1767193241256,975.72227002,0.00011839,2]
[400200885,1767193241309,975.72227002,0.00011839,2]
[400200886,1767193241362,975.72227002,0.00011839,2]
[400200887,1767193241419,975.72227002,0.00011839,2]
[400200888,1767193241469,975.72227002,0.00011839,2]
[400200889,1767193241528,975.72227002,0.00011839,2]
[400200890,1767193241581,975.72227002,0.00011839,2]
[400200891,1767193241634,975.72227002,0.00011839,2]
[400200892,1767193241685,975.72227002,0.00011839,2]
[400200893,1767193241736,75.06359433,0.00011839,2]
[400200894,1767193241769,900.65867569,0.00011839,2]
[400200895,1767193241820,975.72227002,0.00011839,2]
[400200896,1767193242118,975.72227002,0.00011839,2]
[400200897,1767193242172,975.72227002,0.00011839,2]
[400200898,1767193242223,975.72227002,0.00011839,2]
[400200899,1767193242282,975.72227002,0.00011839,2]
[400200900,1767193242336,975.72227002,0.00011839,2]
[400200901,1767193242389,975.72227002,0.00011839,2]
[400200902,1767193242440,975.72227002,0.00011839,2]
[400200903,1767193242496,975.72227002,0.00011839,2]
[400200904,1767193242572,317.85089413,0.00011839,2]
[400200905,1767193242612,657.87137589,0.00011839,2]
[400200906,1767193242680,975.72227002,0.00011839,2]
[400200907,1767193242730,975.72227002,0.00011839,2]
[400200908,1767193242779,975.72227002,0.00011839,2]
[400200909,1767193248479,404.58823089,0.00011839,2]
[400200910,1767193254837,6010.38358316,0.00011765,2]
[400200911,1767193254928,508.55597773,0.00011765,2]
[400200912,1767193256111,4916.89398034,0.0001184,2]
[400200913,1767193256500,3984.39616337,0.0001184,2]
[400200914,1767193258694,590.16387856,0.0001184,2]
[400200915,1767193258750,1747.03990929,0.0001184,2]
[400200916,1767193258893,1191.58848856,0.0001184,2]
[400200917,1767193259513,385.66391193,0.0001184,2]
[400200918,1767193259599,175.36774247,0.0001184,2]
[400200919,1767193262491,1020.114465,0.0001178,2]
[400200920,1767193267566,5480.23548275,7.945e-05,2]
[400200921,1767193267643,2920.69437825,7.945e-05,2]
[400200922,1767193275026,2432.251394,0.00011781,2]
[400200923,1767193293595,1995.545,0.00011603,2]
[400200924,1767193293690,155.855,0.00011603,2]
[400200930,1767193298433,2495.66422775,6.881e-05,2]
[400200931,1767193298504,1935.99577225,6.881e-05,2]
[400200932,1767193298603,4431.66,7.243e-05,2]
[400200933,1767193298793,3632.35422775,7.606e-05,2]
[400200934,1767193298873,799.30577225,7.606e-05,2]
[400200935,1767193299025,4431.66,7.968e-05,2]
[400200936,1767193299241,4431.66,8.33e-05,2]
[400200937,1767193299433,337.38422775,8.692e-05,2]
[400200938,1767193299503,4094.27577225,8.692e-05,2]
[400200939,1767193299830,4431.66,9.054e-05,2]
[400200940,1767193300025,1474.07422775,9.416e-05,2]
[400200941,1767193300089,2957.58577225,9.416e-05,2]
[400200942,1767193300236,4431.66,9.779e-05,2]
[400200943,1767193300457,2610.76422775,0.00010141,2]
[400200944,1767193300528,1820.89577225,0.00010141,2]
[400200945,1767193300691,4431.66,0.00010503,2]
[400200946,1767193300918,3747.45422775,0.00010865,2]
[400200947,1767193300985,684.20577225,0.00010865,2]
[400200948,1767193301099,4431.66,0.00011227,2]
[400200949,1767193301331,4431.66,0.00011589,2]
[400200952,1767193310130,1000.0,0.0001174,2]
[400200954,1767193314698,241.06574048,0.00011839,2]
[400200955,1767193316229,1472.8156,0.0001174,2]
[400200956,1767193321415,300.0,0.00011839,2]
[400200957,1767193322341,2565.2399,0.0001174,2]
[400200958,1767193323344,441.19316691,0.00011839,2]
[400200959,1767193328841,1152.9363,0.0001174,2]
[400200970,1767193371864,303.6803,0.0001174,2]
[400200972,1767193381459,300.0,0.00011839,2]
[400200973,1767193382799,150.0,0.00011839,2]
[400200975,1767193386006,500.0,0.00011839,2]
[400200976,1767193386093,182.534342,0.00011839,2]
[400200977,1767193391983,167.0,0.00011839,2]
[400200978,1767193396385,500.0,0.0001174,2]
[400200979,1767193400020,500.0,0.00011839,2]
[400200980,1767193400123,500.0,0.00011839,2]
[400200981,1767193400228,500.0,0.00011839,2]
[400200982,1767193400355,464.61039109,0.00011839,2]
[400200983,1767193400443,35.38960891,0.00011839,2]
[400200984,1767193400553,500.0,0.00011839,2]
[400200985,1767193400654,500.0,0.00011839,2]
[400200986,1767193400755,500.0,0.00011839,2]
[400200987,1767193400855,500.0,0.00011839,2]
[400200988,1767193400974,500.0,0.00011839,2]
[400200989,1767193401340,500.0,0.00011839,2]
[400200990,1767193401444,500.0,0.00011839,2]
[400200991,1767193401584,500.0,0.00011839,2]
[400200992,1767193401991,500.0,0.00011839,2]
[400200993,1767193402142,500.0,0.00011839,2]
[400200994,1767193402268,500.0,0.00011839,2]
[400200995,1767193402404,500.0,0.00011839,2]
[400200996,1767193402520,500.0,0.00011839,2]
[400200997,1767193402628,500.0,0.00011839,2]
[400200998,1767193402720,500.0,0.00011839,2]
[400200999,1767193402811,500.0,0.00011839,2]
[400201000,1767193402899,500.0,0.00011839,2]
[400201001,1767193402992,500.0,0.00011839,2]
[400201002,1767193403085,500.0,0.00011839,2]
[400201003,1767193403189,464.62039109,0.00011839,2]
[400201005,1767193403269,35.37960891,0.00011839,2]
[400201006,1767193403393,500.0,0.00011839,2]
[400201007,1767193403494,500.0,0.00011839,2]
[400201008,1767193403606,500.0,0.00011839,2]
[400201009,1767193403716,500.0,0.00011839,2]
[400201010,1767193403821,500.0,0.00011839,2]
[400201011,1767193403928,500.0,0.00011839,2]
[400201012,1767193404021,500.0,0.00011839,2]
[400201013,1767193404119,500.0,0.00011839,2]
[400201014,1767193404218,500.0,0.00011839,2]
[400201015,1767193404337,500.0,0.00011839,2]
[400201016,1767193404455,500.0,0.00011839,2]
[400201017,1767193404561,500.0,0.00011839,2]
[400201018,1767193404688,182.42233862,0.00011839,2]
[400201020,1767193417159,530.7383428,0.00011839,2]
[400201021,1767193417248,530.7383428,0.00011839,2]
[400201022,1767193417340,530.7383428,0.00011839,2]
[400201023,1767193417452,530.7383428,0.00011839,2]
[400201024,1767193417545,530.7383428,0.00011839,2]
[400201025,1767193417647,530.7383428,0.00011839,2]
[400201026,1767193417739,530.7383428,0.00011839,2]
[400201027,1767193417834,67.03965287,0.00011839,2]
[400201029,1767193417905,463.69868993,0.00011839,2]
[400201030,1767193417992,530.7383428,0.00011839,2]
[400201031,1767193418088,530.7383428,0.00011839,2]
[400201032,1767193418184,530.7383428,0.00011839,2]
[400201033,1767193418280,530.7383428,0.00011839,2]
[400201034,1767193418590,530.7383428,0.00011839,2]
[400201035,1767193418686,530.7383428,0.00011839,2]
[400201036,1767193418781,530.7383428,0.00011839,2]
[400201037,1767193418872,530.7383428,0.00011839,2]
[400201038,1767193418964,530.7383428,0.00011839,2]
[400201039,1767193419057,530.7383428,0.00011839,2]
[400201040,1767193419148,530.7383428,0.00011839,2]
[400201041,1767193419251,530.7383428,0.00011839,2]
[400201042,1767193419347,530.7383428,0.00011839,2]
[400201043,1767193419447,530.7383428,0.00011839,2]
[400201044,1767193419543,530.7383428,0.00011839,2]
[400201045,1767193419637,530.7383428,0.00011839,2]
[400201046,1767193419728,530.7383428,0.00011839,2]
[400201047,1767193419824,513.75948247,0.00011839,2]
[400201048,1767193419904,16.97886033,0.00011839,2]
[400201049,1767193419995,530.7383428,0.00011839,2]
[400201050,1767193420084,530.7383428,0.00011839,2]
[400201051,1767193420171,530.7383428,0.00011839,2]
[400201052,1767193420260,530.7383428,0.00011839,2]
[400201053,1767193420360,530.7383428,0.00011839,2]
[400201054,1767193420458,530.7383428,0.00011839,2]
[400201055,1767193420549,530.7383428,0.00011839,2]
[400201056,1767193420645,530.7383428,0.00011839,2]
[400201057,1767193420732,530.7383428,0.00011839,2]
[400201058,1767193420816,530.7383428,0.00011839,2]
[400201059,1767193425749,283.21176162,0.00011839,2]
[400201062,1767193434337,500.0,0.00011839,2]
[400201063,1767193434423,500.0,0.00011839,2]
[400201064,1767193434528,500.0,0.00011839,2]
[400201065,1767193434687,448.09769226,0.00011839,2]
[400201066,1767193434823,500.0,0.00011839,2]
[400201067,1767193434984,500.0,0.00011839,2]
[400201068,1767193439122,1000.0,0.0001174,2]
[400201069,1767193439565,263.22870966,0.00011839,2]
[400201070,1767193441371,181.10954813,0.00011839,2]
[400201071,1767193441445,118.89045187,0.00011839,2]